bitfinex/quotes_BTCUSD_20240617
["timestamp","ask_amount","ask_price","bid_price","bid_amount"]
[1718635692363,1.7082834,65759.0,65752.0,0.000935]
[1718635692364,0.702552,65753.0,65752.0,0.000935]
[1718635692580,1.50509979,65753.0,65752.0,0.000935]
[1718635692784,1.24272156,65753.0,65752.0,0.000935]
[1718635692990,1.23252379,65753.0,65752.0,0.000935]
[1718635693206,1.6246099,65753.0,65752.0,0.000935]
[1718635693433,1.57913024,65753.0,65752.0,0.000935]
[1718635693880,0.152097,65748.0,65741.0,0.000935]
[1718635694055,0.1834,65745.0,65741.0,0.000935]
[1718635694277,0.1039,65743.0,65741.0,0.000935]
[1718635694517,0.54303788,65742.0,65741.0,0.000935]
[1718635694724,0.85546981,65742.0,65741.0,0.000935]
[1718635694929,0.15212,65738.0,65728.0,0.00085]
[1718635695136,0.2364,65736.0,65729.0,0.45804674]
[1718635695345,0.2364,65735.0,65734.0,0.456384]
[1718635695568,0.2364,65735.0,65732.0,0.04421904]
[1718635695569,0.2364,65735.0,65732.0,0.19635004]
[1718635695773,0.2364,65735.0,65732.0,0.04421904]
[1718635695774,0.24459363,65735.0,65732.0,0.04421904]
[1718635695984,0.1043,65733.0,65729.0,0.04421904]
[1718635696189,0.1321,65732.0,65729.0,0.04421904]
[1718635696407,0.14024687,65732.0,65729.0,0.04421904]
[1718635696620,0.1321,65730.0,65729.0,0.04421904]
[1718635697277,0.25334687,65730.0,65728.0,0.00085]
[1718635697489,0.2505,65729.0,65728.0,0.00085]
[1718635698133,0.25864687,65729.0,65728.0,0.00085]
[1718635698847,0.25864687,65729.0,65728.0,0.01285]
[1718635699363,0.25864687,65729.0,65728.0,0.51349504]
[1718635699595,0.25864687,65729.0,65728.0,0.81777904]
[1718635699824,0.25964687,65729.0,65728.0,0.82577904]
[1718635700077,0.2515,65729.0,65728.0,0.21721104]
[1718635700311,0.2515,65729.0,65728.0,0.20521104]
[1718635700541,0.2515,65729.0,65728.0,0.50949504]
[1718635700768,0.2515,65729.0,65728.0,0.51649504]
[1718635700996,0.2515,65729.0,65728.0,0.06006904]
[1718635701260,0.2515,65729.0,65728.0,0.21221104]
[1718635702111,0.2515,65729.0,65728.0,0.51649504]
[1718635703151,0.2515,65729.0,65728.0,0.61649504]
[1718635703391,0.001,65729.0,65728.0,1.24504683]
[1718635703880,0.001,65729.0,65728.0,0.94076283]
[1718635704334,0.001,65729.0,65728.0,1.24504683]
[1718635704760,0.001,65729.0,65728.0,1.65553083]
[1718635705013,0.001,65729.0,65728.0,1.80825971]
[1718635705448,0.001,65729.0,65728.0,1.50397571]
[1718635705704,0.6012,65739.0,65738.0,0.456357]
[1718635706171,0.60880271,65739.0,65738.0,0.456357]
[1718635706413,0.14320271,65739.0,65738.0,0.456357]
[1718635708043,0.14320271,65739.0,65738.0,0.457357]
[1718635708459,0.1356,65739.0,65738.0,0.457357]
[1718635709945,0.1356,65739.0,65738.0,0.001]
[1718635710191,1.35391359,65739.0,65738.0,0.001]
[1718635710482,1.37691359,65739.0,65738.0,0.001]
[1718635710725,0.76844759,65739.0,65738.0,0.001]
[1718635711185,1.37691359,65739.0,65738.0,0.001]
[1718635711418,1.37691359,65739.0,65728.0,0.04506904]
[1718635711419,0.247,65734.0,65728.0,0.04506904]
[1718635711879,0.00768013,65733.0,65730.0,0.07634112]
[1718635712835,0.00768013,65733.0,65732.0,0.152132]
[1718635713292,0.247,65734.0,65732.0,0.152132]
[1718635713518,0.247,65734.0,65731.0,0.30427]
[1718635713519,0.247,65734.0,65731.0,0.1]
[1718635713739,0.247,65734.0,65730.0,0.07634112]
[1718635713962,0.00762078,65733.0,65730.0,0.07634112]
[1718635715027,0.00762078,65733.0,65731.0,0.002]
[1718635715271,0.00762078,65733.0,65730.0,0.08134112]
[1718635715706,0.00762078,65733.0,65730.0,0.08534112]
[1718635715930,0.00762078,65733.0,65732.0,0.1]
[1718635716137,0.00762078,65733.0,65730.0,0.08034112]
[1718635716562,0.00762078,65733.0,65731.0,0.004]
[1718635716779,0.2478,65732.0,65731.0,0.004]
[1718635717282,0.25542135,65732.0,65731.0,0.004]
[1718635718064,0.25542135,65732.0,65728.0,0.00085]
[1718635718262,0.25542135,65732.0,65728.0,0.305133]
[1718635718481,0.25542135,65732.0,65730.0,0.005]
[1718635718688,0.2478,65732.0,65730.0,0.005]
[1718635718903,0.00762135,65731.0,65729.0,0.07634112]
[1718635720086,0.2478,65732.0,65729.0,0.07634112]
[1718635720290,0.00762135,65730.0,65728.0,0.00685]
[1718635720489,0.2478,65732.0,65728.0,0.00685]
[1718635720700,0.00762135,65729.0,65728.0,0.00685]
[1718635720901,0.2478,65732.0,65728.0,0.00685]
[1718635721126,0.00762135,65731.0,65728.0,0.00685]
[1718635721327,0.00762135,65731.0,65728.0,0.00085]
[1718635721542,0.00762135,65731.0,65729.0,0.006]
[1718635721769,0.00762135,65731.0,65729.0,0.011]
[1718635721981,0.00762135,65731.0,65729.0,0.005]
[1718635722197,0.1329,65730.0,65728.0,0.00085]
[1718635722410,0.1139,65729.0,65728.0,0.00085]
[1718635722830,0.12152135,65729.0,65728.0,0.01385]
[1718635723657,0.11855035,65729.0,65728.0,0.01385]
[1718635724303,0.11855035,65729.0,65728.0,0.03462644]
[1718635724505,0.11855035,65729.0,65728.0,0.04062644]
[1718635724716,0.11855035,65729.0,65728.0,0.01285]
[1718635724999,0.11855035,65729.0,65728.0,0.00785]
[1718635725829,0.11855035,65729.0,65728.0,0.01385]
[1718635726028,0.250829,65729.0,65728.0,0.01385]
[1718635726260,1.49221842,65729.0,65728.0,0.01385]
[1718635726476,1.67555233,65729.0,65728.0,0.01385]
[1718635726695,1.7138382,65729.0,65728.0,0.01385]
[1718635727545,1.7138382,65729.0,65728.0,0.00685]
[1718635727745,1.7138382,65729.0,65728.0,0.00085]
[1718635727961,0.25548096,65727.0,65726.0,0.1]
[1718635728210,0.00578096,65725.0,65711.0,5.0]
[1718635728453,0.152169,65716.0,65711.0,5.0]
[1718635728658,0.152174,65714.0,65711.0,5.0]
[1718635729089,0.00752412,65713.0,65711.0,5.0]
[1718635729606,0.401872,65715.0,65711.0,5.0]
[1718635729812,0.00752412,65712.0,65711.0,5.0]
[1718635730018,0.401872,65715.0,65711.0,5.0]
[1718635730232,0.00752412,65712.0,65711.0,5.0]
[1718635730440,0.401872,65715.0,65711.0,5.0]
[1718635730648,0.00752412,65712.0,65711.0,5.0]
[1718635730856,0.401872,65715.0,65711.0,5.0]
[1718635731287,0.456537,65712.0,65711.0,5.01]
[1718635731499,0.152178,65713.0,65711.0,5.011]
[1718635731710,0.152176,65713.0,65711.0,5.011]
[1718635731921,0.00752412,65712.0,65711.0,5.021]
[1718635732121,0.00752412,65712.0,65711.0,5.01]
[1718635732330,0.71086112,65712.0,65711.0,5.006]
[1718635732568,0.40650312,65712.0,65711.0,5.006]
[1718635732772,0.25432412,65712.0,65711.0,5.011]
[1718635732979,0.2468,65712.0,65711.0,5.0]
[1718635733182,0.39952888,65712.0,65711.0,5.0]
[1718635733388,0.90374588,65712.0,65711.0,5.0]
[1718635733609,0.14030954,65712.0,65711.0,5.0]
[1718635734015,0.133,65712.0,65711.0,5.0]
[1718635734639,0.135,65712.0,65711.0,5.0]
[1718635735668,0.133,65712.0,65711.0,5.0]
[1718635736164,0.135,65712.0,65711.0,5.0]
[1718635736500,0.439358,65712.0,65711.0,5.0]
[1718635736789,1.024595,65712.0,65711.0,5.0]
[1718635736961,1.48168188,65712.0,65711.0,5.0]
[1718635737180,1.18463342,65712.0,65711.0,5.0]
[1718635737933,1.18263342,65712.0,65711.0,5.0]
[1718635738139,1.18463342,65712.0,65711.0,5.0]
[1718635739209,1.27265371,65712.0,65711.0,5.0]
[1718635739651,1.33057947,65712.0,65711.0,5.0]
[1718635741588,1.63493747,65712.0,65711.0,5.0]
[1718635741801,0.93820118,65712.0,65711.0,5.0]
[1718635742225,0.21592576,65712.0,65711.0,5.0]
[1718635742434,0.002,65712.0,65711.0,5.0]
[1718635742893,0.002,65712.0,65711.0,5.152181]
[1718635743110,0.002,65712.0,65711.0,5.456544]
[1718635743321,0.002,65712.0,65711.0,5.760907]
[1718635743530,0.002,65712.0,65711.0,5.0]
[1718635743972,0.002,65712.0,65711.0,5.152181]
[1718635744199,0.002,65712.0,65711.0,5.0]
[1718635744438,0.290979,65712.0,65711.0,5.0]
[1718635744648,1.33586813,65712.0,65711.0,5.0]
[1718635744875,1.26602224,65712.0,65711.0,5.0]
[1718635745079,1.37712224,65712.0,65711.0,2.0002]
[1718635745283,1.41542364,65712.0,65711.0,2.0002]
[1718635745847,1.71978164,65712.0,65711.0,2.0002]
[1718635746060,0.2448,65703.0,65692.0,0.009383]
[1718635746287,0.152212,65698.0,65696.0,0.45804674]
[1718635746500,0.15221,65699.0,65692.0,0.009383]
[1718635746692,0.00719836,65697.0,65692.0,0.009383]
[1718635747048,0.304421,65699.0,65692.0,0.009383]
[1718635747229,0.00719836,65696.0,65692.0,0.009383]
[1718635747645,0.152202,65702.0,65694.0,0.07634112]
[1718635747885,0.00710403,65695.0,65694.0,0.07634112]
[1718635748020,0.2448,65703.0,65694.0,0.07634112]
[1718635748225,0.152205,65701.0,65694.0,0.07634112]
[1718635748437,0.152208,65700.0,65694.0,0.07634112]
[1718635748639,0.152208,65700.0,65694.0,0.17634112]
[1718635748819,0.152215,65697.0,65694.0,0.17634112]
[1718635749025,0.304424,65698.0,65694.0,0.1]
[1718635749343,0.00710403,65696.0,65694.0,0.1]
[1718635749557,0.2448,65703.0,65694.0,0.1]
[1718635749759,0.2448,65703.0,65694.0,0.112]
[1718635749760,0.00711469,65695.0,65694.0,0.112]
[1718635749962,0.152208,65700.0,65694.0,0.112]
[1718635750365,0.39752888,65703.0,65694.0,0.112]
[1718635750366,0.456655,65695.0,65694.0,0.112]
[1718635750565,0.722455,65695.0,65694.0,0.112]
[1718635750769,0.418018,65695.0,65694.0,0.112]
[1718635750970,0.42512041,65695.0,65694.0,0.112]
[1718635751714,0.42512041,65695.0,65694.0,0.1]
[1718635752217,0.27290241,65695.0,65694.0,0.111]
[1718635752419,0.00710241,65695.0,65694.0,0.111]
[1718635752627,0.00085,65698.0,65697.0,0.152213]
[1718635753049,0.00085,65698.0,65694.0,0.2098]
[1718635753476,0.00085,65698.0,65696.0,0.152214]
[1718635753684,0.00085,65698.0,65697.0,0.55664]
[1718635753892,0.00085,65698.0,65697.0,0.252213]
[1718635754098,0.00085,65698.0,65697.0,0.98105079]
[1718635754708,0.00085,65698.0,65697.0,0.2]
[1718635754923,0.00085,65698.0,65697.0,0.1]
[1718635755136,0.00085,65698.0,65697.0,0.65664]
[1718635755310,0.00385,65698.0,65697.0,0.65664]
[1718635755604,0.00385,65698.0,65697.0,0.961067]
[1718635755815,0.00085,65698.0,65697.0,0.1]
[1718635756020,0.00085,65698.0,65697.0,0.352213]
[1718635756228,0.00085,65698.0,65697.0,0.357213]
[1718635756439,0.00085,65698.0,65697.0,0.105]
[1718635756699,0.00085,65698.0,65697.0,0.1]
[1718635757112,0.00085,65698.0,65697.0,0.109]
[1718635757329,0.457484,65698.0,65697.0,0.109]
[1718635757545,0.784907,65698.0,65697.0,0.109]
[1718635757953,0.82255824,65698.0,65697.0,0.109]
[1718635758364,0.82255824,65698.0,65697.0,0.1]
[1718635758587,0.67086412,65698.0,65697.0,0.1]
[1718635758795,0.36644112,65698.0,65697.0,0.105]
[1718635759566,0.36644112,65698.0,65697.0,0.1]
[1718635759745,0.36744112,65698.0,65697.0,0.1]
[1718635760241,0.67186412,65698.0,65697.0,0.1]
[1718635760485,0.36744112,65698.0,65697.0,0.1]
[1718635761431,0.17757888,65698.0,65697.0,0.1]
[1718635761659,0.32978988,65698.0,65697.0,0.1]
[1718635761853,0.18461702,65698.0,65697.0,0.1]
[1718635762323,0.33682802,65698.0,65697.0,0.1]
[1718635762716,0.64125102,65698.0,65697.0,0.1]
[1718635762928,0.33682802,65698.0,65697.0,0.1]
[1718635763600,0.00888814,65698.0,65697.0,0.967867]
[1718635763999,0.00888814,65698.0,65697.0,0.815654]
[1718635764248,0.00888814,65698.0,65697.0,0.967867]
[1718635764249,0.00185,65698.0,65697.0,0.967867]
[1718635764452,0.00185,65698.0,65697.0,0.2068]
[1718635765098,0.00185,65698.0,65697.0,0.1]
[1718635765586,0.00085,65698.0,65697.0,0.1]
[1718635765811,0.56028988,65698.0,65697.0,0.103]
[1718635766032,0.50062882,65698.0,65697.0,0.103]
[1718635766235,0.53849121,65698.0,65697.0,0.1]
[1718635766443,0.50062882,65698.0,65697.0,0.1]
[1718635766649,0.50062882,65698.0,65697.0,0.103]
[1718635766884,0.43824317,65698.0,65697.0,0.103]
[1718635767935,0.47575888,65698.0,65697.0,0.103]
[1718635768155,0.43824317,65698.0,65697.0,0.1]
[1718635768576,0.43924317,65698.0,65697.0,0.1]
[1718635769858,0.47628697,65698.0,65697.0,0.1]
[1718635770295,0.62849797,65698.0,65697.0,0.1]
[1718635770744,0.47628697,65698.0,65697.0,0.1]
[1718635770954,1.35843678,65698.0,65697.0,0.1]
[1718635771394,0.62849797,65698.0,65697.0,0.1]
[1718635771606,0.93292097,65698.0,65697.0,0.1]
[1718635772033,0.04605809,65698.0,65697.0,0.1]
[1718635772487,0.00901429,65698.0,65697.0,0.861067]
[1718635772909,0.00901429,65698.0,65697.0,1.28547779]
[1718635773339,0.00901429,65698.0,65697.0,0.861067]
[1718635773513,0.00901429,65698.0,65697.0,0.98105079]
[1718635774648,0.00801429,65698.0,65697.0,0.861067]
[1718635775086,0.00801429,65698.0,65697.0,0.407427]
[1718635775296,0.00085,65698.0,65697.0,1.268494]
[1718635775509,0.00085,65698.0,65697.0,1.58197779]
[1718635775929,0.00085,65698.0,65697.0,1.58897779]
[1718635776340,0.00085,65698.0,65697.0,1.58197779]
[1718635776550,0.00085,65698.0,65697.0,1.561994]
[1718635776976,0.00085,65698.0,65697.0,1.58197779]
[1718635777587,0.00085,65698.0,65697.0,1.88640479]
[1718635778132,0.00085,65698.0,65697.0,1.88940479]
[1718635778780,0.00085,65698.0,65697.0,1.88640479]
[1718635778989,0.00085,65698.0,65697.0,1.89340479]
[1718635779626,0.00085,65698.0,65697.0,1.88640479]
[1718635780013,0.00085,65698.0,65697.0,1.89940479]
[1718635780450,0.00085,65698.0,65697.0,1.474994]
[1718635780873,0.00085,65698.0,65697.0,1.59497779]
[1718635781292,0.00085,65698.0,65697.0,1.473324]
[1718635781739,0.00085,65698.0,65697.0,0.4095]
[1718635781953,0.00085,65698.0,65697.0,0.113]
[1718635782125,0.00085,65698.0,65697.0,0.265213]
[1718635782373,0.00085,65698.0,65697.0,0.113]
[1718635783222,0.00085,65698.0,65697.0,0.113935]
[1718635785325,0.00085,65698.0,65697.0,0.100935]
[1718635785560,0.00085,65698.0,65697.0,0.566575]
[1718635786038,0.00085,65698.0,65697.0,1.34028579]
[1718635786466,0.00085,65698.0,65697.0,1.33128579]
[1718635787304,0.00085,65698.0,65697.0,1.33528579]
[1718635787726,0.00085,65698.0,65697.0,1.315302]
[1718635787937,0.00085,65698.0,65697.0,1.33528579]
[1718635788365,0.00085,65698.0,65697.0,0.104935]
[1718635788599,0.0679651,65698.0,65697.0,0.104935]
[1718635788806,0.00792099,65698.0,65697.0,0.100935]
[1718635789217,0.00792099,65698.0,65697.0,0.109935]
[1718635789640,0.00792099,65698.0,65697.0,0.100935]
[1718635790075,0.16013199,65698.0,65697.0,0.100935]
[1718635790693,0.00792099,65698.0,65697.0,0.100935]
[1718635791118,0.16013199,65698.0,65697.0,0.100935]
[1718635791348,0.46455499,65698.0,65697.0,0.100935]
[1718635791760,0.35583199,65698.0,65697.0,0.100935]
[1718635792181,1.00039984,65698.0,65697.0,0.100935]
[1718635792408,0.69597684,65698.0,65697.0,0.100935]
[1718635792618,1.00039984,65698.0,65697.0,0.100935]
[1718635793035,0.69697684,65698.0,65697.0,0.100935]
[1718635793247,0.96567799,65698.0,65697.0,0.100935]
[1718635793456,0.9994396,65698.0,65697.0,0.100935]
[1718635794431,1.3432396,65698.0,65697.0,0.100935]
[1718635794640,1.0388166,65698.0,65697.0,0.100935]
[1718635795046,1.3432396,65698.0,65697.0,0.100935]
[1718635795265,1.6476626,65698.0,65697.0,0.100935]
[1718635796627,1.3432396,65698.0,65697.0,0.100935]
[1718635797649,1.6476626,65698.0,65697.0,0.100935]
[1718635798161,2.02147679,65698.0,65697.0,0.100935]
[1718635798377,2.04447679,65698.0,65697.0,0.100935]
[1718635798869,2.04647679,65698.0,65697.0,0.100935]
[1718635799549,1.97810404,65698.0,65697.0,0.100935]
[1718635799783,2.06926771,65698.0,65697.0,0.100935]
[1718635800021,1.97810404,65698.0,65697.0,0.100935]
[1718635800486,2.06926771,65698.0,65697.0,0.100935]
[1718635800706,1.97810404,65698.0,65697.0,0.100935]
[1718635801165,2.28252704,65698.0,65697.0,0.100935]
[1718635801423,2.00869198,65698.0,65697.0,0.100935]
[1718635801629,2.00769198,65698.0,65697.0,0.100935]
[1718635801843,1.97710404,65698.0,65697.0,0.100935]
[1718635802060,2.01269596,65698.0,65697.0,0.101935]
[1718635802271,2.06069596,65698.0,65697.0,0.101935]
[1718635802481,2.05569596,65698.0,65697.0,0.100935]
[1718635802688,2.06169596,65698.0,65697.0,0.101935]
[1718635802900,2.06853246,65698.0,65697.0,0.102935]
[1718635803339,2.37295546,65698.0,65697.0,0.102935]
[1718635803547,2.50964181,65698.0,65697.0,0.102935]
[1718635803986,2.37295546,65698.0,65697.0,0.102935]
[1718635805314,2.37244523,65698.0,65697.0,0.102935]
[1718635806392,2.37244523,65698.0,65697.0,0.04493403]
[1718635806393,2.95400523,65698.0,65697.0,0.04493403]
[1718635806615,2.95400523,65698.0,65690.0,0.1]
[1718635806616,1.516792,65691.0,65690.0,0.1]
[1718635806836,2.94627705,65691.0,65690.0,0.1]
[1718635807052,1.66505695,65691.0,65690.0,0.1]
[1718635807258,0.68734578,65691.0,65690.0,0.4554]
[1718635807713,0.83957278,65691.0,65690.0,0.4554]
[1718635807918,1.14402778,65691.0,65690.0,0.4554]
[1718635808123,0.83957278,65691.0,65690.0,0.4554]
[1718635809006,0.99230166,65691.0,65690.0,0.1]
[1718635809214,2.51026791,65691.0,65690.0,0.101]
[1718635809424,2.51026791,65691.0,65690.0,0.1]
[1718635809425,2.56857525,65691.0,65690.0,0.1]
[1718635809672,2.74405799,65691.0,65690.0,0.1]
[1718635809885,2.74505799,65691.0,65690.0,0.1]
[1718635810117,3.04751299,65691.0,65690.0,0.1]
[1718635810340,3.04751299,65691.0,65690.0,0.063998]
[1718635810341,3.31089047,65691.0,65690.0,0.063998]
[1718635810582,3.66492874,65691.0,65690.0,0.055923]
[1718635810824,3.36047374,65691.0,65690.0,0.055923]
[1718635811035,3.68806025,65691.0,65690.0,0.055923]
[1718635811510,3.55147374,65691.0,65690.0,0.055923]
[1718635811737,2.84430618,65691.0,65690.0,0.055923]
[1718635811946,2.29581291,65691.0,65690.0,0.055923]
[1718635812158,2.36407078,65691.0,65690.0,0.055923]
[1718635812365,2.36407078,65691.0,65690.0,0.056923]
[1718635812366,2.30881291,65691.0,65690.0,0.056923]
[1718635812574,2.35431175,65691.0,65690.0,0.056923]
[1718635812806,2.65876675,65691.0,65690.0,0.056923]
[1718635813014,2.68806218,65691.0,65690.0,0.056923]
[1718635813234,2.75632005,65691.0,65690.0,0.056923]
[1718635813447,2.70206218,65691.0,65690.0,0.057923]
[1718635813656,2.68806218,65691.0,65690.0,0.056923]
[1718635813864,2.75632005,65691.0,65690.0,0.057923]
[1718635814100,2.77032005,65691.0,65690.0,0.057923]
[1718635814312,2.67406218,65691.0,65690.0,0.055923]
[1718635814765,2.75232005,65691.0,65690.0,0.056923]
[1718635814986,2.79783581,65691.0,65690.0,0.056923]
[1718635815202,3.06236226,65691.0,65690.0,0.056923]
[1718635815424,3.17613589,65691.0,65690.0,0.056923]
[1718635815611,3.32313754,65691.0,65690.0,0.056923]
[1718635815861,3.05326753,65691.0,65690.0,0.056923]
[1718635816069,2.40087966,65691.0,65690.0,0.055923]
[1718635816283,2.40087966,65691.0,65690.0,0.056923]
[1718635816284,2.41487966,65691.0,65690.0,0.056923]
[1718635816489,2.88604722,65691.0,65690.0,0.057923]
[1718635816744,2.79103107,65691.0,65690.0,0.056923]
[1718635816972,2.85924334,65691.0,65690.0,0.056923]
[1718635817184,2.87324334,65691.0,65690.0,0.057923]
[1718635817404,2.87324334,65691.0,65690.0,0.056923]
[1718635817405,1.67600851,65691.0,65690.0,0.056923]
[1718635817611,1.66200851,65691.0,65690.0,0.055923]
[1718635817820,2.35313078,65691.0,65690.0,0.056923]
[1718635818047,2.37960635,65691.0,65690.0,0.056923]
[1718635818278,2.29891851,65691.0,65690.0,0.057923]
[1718635818710,2.30410571,65691.0,65690.0,0.056923]
[1718635818930,2.31810571,65691.0,65690.0,0.057923]
[1718635819370,2.4896458,65691.0,65690.0,0.057923]
[1718635819606,3.24244194,65691.0,65690.0,0.055923]
[1718635819818,3.51782683,65691.0,65690.0,0.055923]
[1718635820031,3.41813246,65691.0,65690.0,0.056923]
[1718635820247,3.40413246,65691.0,65690.0,0.055923]
[1718635820552,3.40413246,65691.0,65690.0,0.056923]
[1718635820553,3.81351126,65691.0,65690.0,0.056923]
[1718635820773,3.53182683,65691.0,65690.0,0.056923]
[1718635820986,3.41813246,65691.0,65690.0,0.056923]
[1718635821411,1.772733,65687.0,65686.0,0.009383]
[1718635821632,2.86808517,65687.0,65686.0,0.009383]
[1718635821850,3.28388659,65687.0,65686.0,0.009383]
[1718635822062,3.46857711,65687.0,65686.0,0.009383]
[1718635822270,3.30857357,65687.0,65686.0,0.009383]
[1718635822472,3.37675691,65687.0,65686.0,0.009383]
[1718635823571,1.17416546,65687.0,65686.0,0.010383]
[1718635823794,1.63087646,65687.0,65686.0,0.163683]
[1718635824016,1.68921613,65687.0,65686.0,0.163683]
[1718635824255,1.99369013,65687.0,65686.0,0.010383]
[1718635824526,2.29816413,65687.0,65686.0,0.010383]
[1718635824739,2.25382446,65687.0,65686.0,0.011383]
[1718635825804,2.25567773,65687.0,65686.0,0.011383]
[1718635826858,2.30567773,65687.0,65686.0,0.011383]
[1718635827120,2.50715176,65687.0,65686.0,0.011383]
[1718635827336,2.13447051,65687.0,65686.0,0.011383]
[1718635827793,2.43894451,65687.0,65686.0,0.011383]
[1718635828228,2.69050451,65687.0,65686.0,0.011383]
[1718635828462,0.202262,65676.0,65675.0,0.009383]
[1718635828673,1.00085969,65676.0,65675.0,0.009383]
[1718635828880,1.799978,65676.0,65675.0,0.009383]
[1718635829093,1.822978,65676.0,65675.0,0.009383]
[1718635829298,1.518453,65676.0,65675.0,0.009383]
[1718635829511,1.57285625,65676.0,65675.0,0.009383]
[1718635830351,1.62635583,65676.0,65675.0,0.009383]
[1718635830558,2.30685583,65676.0,65675.0,0.009383]
[1718635831199,2.31385583,65676.0,65675.0,0.009383]
[1718635831410,2.61838083,65676.0,65675.0,0.009383]
[1718635831611,2.61838083,65676.0,65662.0,0.009383]
[1718635831612,1.115851,65675.0,65662.0,0.009383]
[1718635831840,0.506808,65673.0,65662.0,0.009383]
[1718635832048,1.45006317,65673.0,65662.0,0.009383]
[1718635832263,1.40673148,65673.0,65662.0,0.009383]
[1718635832479,1.98343618,65673.0,65662.0,0.009383]
[1718635832690,2.13614874,65673.0,65662.0,0.009383]
[1718635832894,2.04511886,65673.0,65662.0,0.009383]
[1718635833341,2.44068774,65673.0,65662.0,0.009383]
[1718635833682,0.05,65663.0,65662.0,0.009383]
[1718635833874,1.66569469,65663.0,65662.0,0.009383]
[1718635834085,1.97097141,65663.0,65662.0,0.009383]
[1718635834328,1.20291912,65663.0,65662.0,0.009383]
[1718635834541,1.15740969,65663.0,65662.0,0.009383]
[1718635834979,1.17140969,65663.0,65662.0,0.009383]
[1718635835434,1.15740969,65663.0,65662.0,0.009383]
[1718635835657,0.40994769,65663.0,65662.0,0.009383]
[1718635835867,0.56223969,65663.0,65662.0,0.009383]
[1718635836093,1.47599469,65663.0,65662.0,0.009383]
[1718635836328,2.18177969,65663.0,65662.0,0.009383]
[1718635836958,1.89119469,65663.0,65662.0,0.009383]
[1718635837178,1.87719469,65663.0,65662.0,0.009383]
[1718635837601,0.56223969,65663.0,65662.0,0.009383]
[1718635837827,0.38694769,65663.0,65662.0,0.009383]
[1718635838039,0.53923969,65663.0,65662.0,0.009383]
[1718635838251,0.82100588,65663.0,65662.0,0.009383]
[1718635838474,0.88178162,65663.0,65662.0,0.009383]
[1718635838699,1.23636662,65663.0,65662.0,0.009383]
[1718635838927,0.8576529,65663.0,65662.0,0.009383]
[1718635839141,0.8806529,65663.0,65662.0,0.009383]
[1718635839352,1.4898229,65663.0,65662.0,0.009383]
[1718635840278,1.4758229,65663.0,65662.0,0.009383]
[1718635840494,1.33795046,65663.0,65662.0,0.009383]
[1718635840720,1.64253546,65663.0,65662.0,0.009383]
[1718635840948,1.62853546,65663.0,65662.0,0.009383]
[1718635841162,2.04193546,65663.0,65662.0,0.009383]
[1718635841396,2.02793546,65663.0,65662.0,0.009383]
[1718635841618,2.04702642,65663.0,65662.0,0.009383]
[1718635841823,2.06102642,65663.0,65662.0,0.009383]
[1718635842034,2.04702642,65663.0,65662.0,0.009383]
[1718635842239,2.35161142,65663.0,65662.0,0.009383]
[1718635842451,2.33761142,65663.0,65662.0,0.009383]
[1718635842673,2.35161142,65663.0,65662.0,0.009383]
[1718635843297,2.39710215,65663.0,65662.0,0.009383]
[1718635843506,2.35161142,65663.0,65662.0,0.009383]
[1718635843715,2.06102642,65663.0,65662.0,0.009383]
[1718635843924,2.05967278,65663.0,65662.0,0.009383]
[1718635844136,2.04567278,65663.0,65662.0,0.009383]
[1718635844347,2.10516351,65663.0,65662.0,0.009383]
[1718635844559,2.40974851,65663.0,65662.0,0.009383]
[1718635844990,2.36425778,65663.0,65662.0,0.009383]
[1718635845210,2.40974851,65663.0,65662.0,0.009383]
[1718635845428,2.36425778,65663.0,65662.0,0.009383]
[1718635845638,2.05967278,65663.0,65662.0,0.009383]
[1718635845865,1.89296022,65663.0,65662.0,0.009383]
[1718635846108,1.90696022,65663.0,65662.0,0.009383]
[1718635846749,2.19754522,65663.0,65662.0,0.009383]
[1718635848242,2.18354522,65663.0,65662.0,0.009383]
[1718635848452,2.35025778,65663.0,65662.0,0.009383]
[1718635848677,2.36425778,65663.0,65662.0,0.009383]
[1718635849088,2.04567278,65663.0,65662.0,0.009383]
[1718635849707,2.28777817,65663.0,65662.0,0.009383]
[1718635850129,2.57836317,65663.0,65662.0,0.009383]
[1718635850735,2.54289409,65663.0,65662.0,0.009383]
[1718635851167,1.56073604,65663.0,65662.0,0.009383]
[1718635851382,0.30649095,65663.0,65662.0,0.359583]
[1718635851598,0.07856126,65663.0,65662.0,0.359583]
[1718635851805,0.09256126,65663.0,65662.0,0.359583]
[1718635852018,0.07856126,65663.0,65662.0,0.359583]
[1718635852437,0.0734703,65663.0,65662.0,0.359583]
[1718635852676,0.22619918,65663.0,65662.0,0.009383]
[1718635852904,0.85247618,65663.0,65662.0,0.009383]
[1718635853123,1.4206838,65663.0,65662.0,0.009383]
[1718635853550,1.4576838,65663.0,65662.0,0.009383]
[1718635854000,1.66039636,65663.0,65662.0,0.009383]
[1718635854212,2.2393267,65663.0,65662.0,0.009383]
[1718635854417,2.0017667,65663.0,65662.0,0.009383]
[1718635854838,1.84905414,65663.0,65662.0,0.009383]
[1718635855067,1.82105414,65663.0,65662.0,0.009383]
[1718635855284,1.83505414,65663.0,65662.0,0.009383]
[1718635855699,1.82105414,65663.0,65662.0,0.009383]
[1718635856113,1.78987685,65663.0,65662.0,0.009383]
[1718635856330,1.94258941,65663.0,65662.0,0.009383]
[1718635856560,1.92858941,65663.0,65662.0,0.009383]
[1718635856766,1.92299733,65663.0,65662.0,0.009383]
[1718635857174,1.93699733,65663.0,65662.0,0.009383]
[1718635858013,1.92299733,65663.0,65662.0,0.009383]
[1718635858235,0.761625,65649.0,65648.0,0.1512]
[1718635858457,0.761625,65649.0,65648.0,0.60924674]
[1718635858458,1.40186277,65649.0,65648.0,0.60924674]
[1718635858643,1.40186277,65649.0,65648.0,0.1512]
[1718635859338,0.152332,65646.0,65634.0,0.11998379]
[1718635859559,0.97446723,65646.0,65634.0,0.11998379]